bitfinex-derivatives/quotes_BTCF0:USTF0_20260106
["timestamp","ask_amount","ask_price","bid_price","bid_amount"]
[1767664396969,0.00213132,93839.0,93823.0,0.02231681]
[1767664397167,0.0230754,93844.0,93832.0,0.010657]
[1767664397168,0.09064,93842.0,93832.0,0.010657]
[1767664397370,0.01665378,93848.0,93837.0,0.03297381]
[1767664397568,0.09064,93854.0,93837.0,0.03297381]
[1767664397972,0.10761112,93854.0,93837.0,0.02231681]
[1767664399168,0.10761112,93854.0,93838.0,0.010657]
[1767664399877,1.2e-07,93854.0,93848.0,0.010656]
[1767664400180,0.09064,93865.0,93846.0,0.02231681]
[1767664400372,0.09064,93865.0,93846.0,0.03297281]
[1767664400775,0.10758569,93865.0,93846.0,0.03297281]
[1767664400980,0.12216575,93861.0,93842.0,0.010656]
[1767664401478,0.12216575,93861.0,93840.0,0.10892568]
[1767664401479,0.12216575,93859.0,93840.0,0.10892568]
[1767664401980,0.12216575,93859.0,93843.0,0.010656]
[1767664402478,0.12216575,93859.0,93844.0,0.010656]
[1767664402665,0.09909035,93859.0,93844.0,0.010656]
[1767664402870,0.09826968,93860.0,93843.0,0.010656]
[1767664403172,0.0230754,93861.0,93843.0,0.010656]
[1767664403479,0.12216575,93860.0,93840.0,0.09826968]
[1767664403681,0.12216575,93859.0,93840.0,0.09826968]
[1767664403982,0.12216575,93859.0,93841.0,0.010656]
[1767664404685,0.0230754,93857.0,93841.0,0.010656]
[1767664405184,0.12216575,93857.0,93841.0,0.010656]
[1767664405368,0.0230754,93862.0,93840.0,0.12058649]
[1767664405571,0.09909035,93863.0,93840.0,0.12058649]
[1767664405572,0.09909035,93863.0,93842.0,0.02231681]
[1767664405972,0.12216575,93863.0,93842.0,0.02231681]
[1767664406776,0.0230754,93862.0,93842.0,0.02231681]
[1767664407176,0.0230754,93862.0,93845.0,0.010656]
[1767664407883,0.12216575,93862.0,93845.0,0.010656]
[1767664408078,0.0230754,93861.0,93845.0,0.010656]
[1767664408783,0.0230754,93856.0,93840.0,0.09826968]
[1767664408979,0.09909035,93851.0,93830.0,0.21135118]
[1767664409182,0.0230754,93850.0,93831.0,0.09064]
[1767664409380,0.09909035,93851.0,93832.0,0.02231681]
[1767664409687,0.0230754,93854.0,93833.0,0.02231681]
[1767664409983,0.0230754,93854.0,93840.0,0.09826968]
[1767664410287,0.09909035,93856.0,93841.0,0.010656]
[1767664411284,0.12134565,93856.0,93837.0,0.010657]
[1767664411582,0.12052498,93860.0,93841.0,0.010656]
[1767664411788,0.11709517,93859.0,93841.0,0.010656]
[1767664411988,0.09483987,93857.0,93841.0,0.010656]
[1767664412182,0.0222553,93856.0,93841.0,0.010656]
[1767664413084,0.09483987,93857.0,93841.0,0.010656]
[1767664413481,0.11709517,93853.0,93838.0,0.010657]
[1767664414479,0.11709517,93853.0,93840.0,0.010656]
[1767664414888,0.11709517,93853.0,93843.0,0.010656]
[1767664415889,0.0222553,93857.0,93844.0,0.010656]
[1767664416978,0.11709517,93857.0,93844.0,0.010656]
[1767664418183,0.11709517,93857.0,93840.0,0.09826968]
[1767664418394,0.10758569,93865.0,93849.0,0.010655]
[1767664418586,0.12984099,93865.0,93850.0,0.09826968]
[1767664418786,0.13404086,93865.0,93850.0,0.09826968]
[1767664418986,0.09064,93864.0,93850.0,0.09826968]
[1767664419192,0.09064,93864.0,93849.0,0.010655]
[1767664419488,0.0222553,93863.0,93846.0,0.010656]
[1767664419694,0.11709517,93863.0,93850.0,0.09826968]
[1767664420692,0.12052498,93860.0,93838.0,0.09222935]
[1767664420883,0.11709517,93852.0,93840.0,0.010656]
[1767664421088,0.09483987,93851.0,93840.0,0.010656]
[1767664421492,0.0222553,93855.0,93840.0,0.010656]
[1767664422194,0.0222553,93855.0,93841.0,0.010656]
[1767664423398,0.0222553,93855.0,93840.0,0.09826968]
[1767664423698,0.09483987,93857.0,93840.0,0.09826968]
[1767664424398,0.09483987,93857.0,93845.0,0.010656]
[1767664424789,0.09483987,93857.0,93842.0,0.010656]
[1767664426802,0.11709517,93857.0,93842.0,0.010656]
[1767664427098,0.0222553,93856.0,93842.0,0.010656]
[1767664428302,0.0222553,93856.0,93840.0,0.09826968]
[1767664429186,0.0222553,93856.0,93842.0,0.010656]
[1767664433005,0.0222553,93856.0,93840.0,0.09826968]
[1767664433205,0.010655,93856.0,93840.0,0.09826968]
[1767664433504,0.09483987,93857.0,93843.0,0.010656]
[1767664434605,0.03120567,93855.0,93840.0,0.09826968]
[1767664434801,0.010655,93853.0,93840.0,0.09826968]
[1767664435208,0.010655,93853.0,93837.0,0.010657]
[1767664436808,0.010655,93853.0,93840.0,0.09826968]
[1767664438005,0.02055067,93855.0,93840.0,0.10892568]
[1767664438608,0.02055067,93855.0,93840.0,0.010656]
[1767664440711,0.09634435,93856.0,93843.0,0.010656]
[1767664441012,0.10699935,93856.0,93840.0,0.010656]
[1767664441309,0.010655,93852.0,93836.0,0.10923366]
[1767664441918,0.101294,93863.0,93833.0,0.09064]
[1767664441919,0.010656,93843.0,93833.0,0.09064]
[1767664442100,0.02076829,93845.0,93833.0,0.09064]
[1767664442306,0.02076829,93843.0,93833.0,0.09064]
[1767664443006,0.09488432,93844.0,93833.0,0.09064]
[1767664443918,0.010656,93843.0,93827.0,0.09064]
[1767664444218,0.09488432,93844.0,93828.0,0.010658]
[1767664444615,0.09488432,93844.0,93830.0,0.010658]
[1767664444912,0.09488432,93849.0,93828.0,0.02037776]
[1767664445117,0.09488432,93849.0,93833.0,0.010657]
[1767664445615,0.09488432,93849.0,93832.0,0.010657]
[1767664446008,0.010656,93848.0,93832.0,0.010657]
[1767664446205,0.03142429,93848.0,93832.0,0.010657]
[1767664446513,0.03142429,93848.0,93829.0,0.03103576]
[1767664446817,0.02076829,93848.0,93829.0,0.02037776]
[1767664448220,0.010656,93847.0,93830.0,0.010658]
[1767664448617,0.11565261,93846.0,93827.0,0.101298]
[1767664449511,0.11565261,93846.0,93827.0,0.12167576]
[1767664450016,0.11565261,93846.0,93829.0,0.010658]
[1767664453522,0.11565261,93846.0,93831.0,0.010657]
[1767664453713,0.11565261,93846.0,93828.0,0.02037776]
[1767664454222,0.11565261,93846.0,93834.0,0.010657]
[1767664454524,0.09488432,93846.0,93834.0,0.010657]
[1767664456623,0.09488432,93846.0,93831.0,0.010657]
[1767664457124,0.09488432,93846.0,93828.0,0.03103576]
[1767664457820,0.02076829,93845.0,93828.0,0.010658]
[1767664458126,0.09488432,93846.0,93828.0,0.02037776]
[1767664459118,0.09488432,93846.0,93832.0,0.010657]
[1767664459423,0.09488432,93846.0,93834.0,0.010657]
[1767664462123,0.09488432,93846.0,93831.0,0.010657]
[1767664464219,0.09488432,93846.0,93833.0,0.010657]
[1767664464524,0.09488432,93846.0,93827.0,0.09064]
[1767664465223,0.09488432,93846.0,93831.0,0.010657]
[1767664466020,0.11565261,93846.0,93831.0,0.010657]
[1767664467522,0.11565261,93846.0,93833.0,0.010657]
[1767664468226,0.11565261,93846.0,93834.0,0.010657]
[1767664470328,0.02076829,93845.0,93834.0,0.010657]
[1767664470530,0.02076829,93845.0,93827.0,0.09064]
[1767664471632,0.02076829,93845.0,93833.0,0.010657]
[1767664472826,0.02009394,93842.0,93830.0,0.010658]
[1767664473432,0.02009394,93830.0,93810.0,0.02018228]
[1767664473729,0.010657,93833.0,93814.0,0.010659]
[1767664474034,0.02009394,93834.0,93816.0,0.010659]
[1767664475028,0.02009394,93834.0,93818.0,0.010659]
[1767664475226,0.09043096,93836.0,93820.0,0.010659]
[1767664475426,0.1105249,93836.0,93820.0,0.010659]
[1767664476734,0.02009394,93831.0,93814.0,0.010659]
[1767664477135,0.13367537,93859.0,93818.0,0.010659]
[1767664477136,0.02009394,93835.0,93818.0,0.010659]
[1767664477334,0.010657,93838.0,93817.0,0.02018228]
[1767664477637,0.02009394,93827.0,93811.0,0.09064]
[1767664478433,0.02009394,93822.0,93811.0,0.09064]
[1767664478624,0.02009394,93821.0,93811.0,0.09064]
[1767664478829,0.02009394,93820.0,93811.0,0.09064]
[1767664479033,0.02009394,93820.0,93811.0,0.059643]
[1767664479240,0.02009394,93820.0,93811.0,0.01753566]
[1767664479431,0.02009394,93820.0,93809.0,0.002132]
[1767664481231,0.09064,93839.0,93812.0,0.01066]
[1767664481232,0.01014613,93828.0,93812.0,0.01066]
[1767664482039,0.01014613,93824.0,93809.0,0.012792]
[1767664482237,0.00988178,93823.0,93809.0,0.002132]
[1767664483033,0.09043096,93824.0,93809.0,0.002132]
[1767664483239,0.00988178,93827.0,93809.0,0.002132]
[1767664483632,0.00988178,93827.0,93809.0,0.012792]
[1767664483633,0.09987106,93825.0,93809.0,0.012792]
[1767664483840,0.0094401,93824.0,93809.0,0.012792]
[1767664484142,0.0094401,93823.0,93809.0,0.012792]
[1767664487045,0.0094401,93823.0,93809.0,0.002132]
[1767664488148,0.09043096,93824.0,93812.0,0.01066]
[1767664489843,0.00789986,93821.0,93812.0,0.01066]
[1767664490043,0.00789986,93821.0,93809.0,0.002132]
[1767664491048,0.00764299,93825.0,93809.0,0.002132]
[1767664491247,0.09064,93831.0,93815.0,0.010659]
[1767664491641,0.00780659,93830.0,93815.0,0.010659]
[1767664492344,0.09043096,93834.0,93816.0,0.02018228]
[1767664492549,0.09064,93832.0,93816.0,0.02018228]
[1767664493045,0.10863699,93845.0,93826.0,0.010658]
[1767664493350,0.010654,93862.0,93813.0,0.010659]
[1767664493351,0.010656,93846.0,93828.0,0.02018228]
[1767664493540,0.0179312,93846.0,93827.0,0.10423977]
[1767664494046,0.0072752,93846.0,93829.0,0.010658]
[1767664494255,0.0176754,93849.0,93830.0,0.02018228]
[1767664494552,0.0070204,93848.0,93834.0,0.010657]
[1767664495443,0.0070204,93848.0,93829.0,0.09358177]
[1767664495644,0.09639186,93849.0,93837.0,0.010657]
[1767664495851,0.00512767,93852.0,93839.0,0.010657]
[1767664496047,0.00512767,93852.0,93836.0,0.010657]
[1767664496351,0.00512767,93852.0,93833.0,0.01953625]
[1767664497351,0.00512767,93852.0,93839.0,0.010657]
[1767664497546,0.00512767,93852.0,93836.0,0.010657]
[1767664499552,0.09913943,93855.0,93836.0,0.010657]
[1767664499753,0.01340257,93854.0,93836.0,0.010657]
[1767664500447,0.00274757,93854.0,93833.0,0.01953625]
[1767664500650,0.00274757,93854.0,93840.0,0.09820059]
[1767664500849,0.0025784,93856.0,93839.0,0.010657]
[1767664501053,0.0025784,93856.0,93840.0,0.09820059]
[1767664501446,0.0025784,93852.0,93836.0,0.010657]
[1767664501642,0.0025784,93847.0,93833.0,0.010657]
[1767664501952,0.0925576,93848.0,93833.0,0.010657]
[1767664502451,0.010657,93839.0,93821.0,0.0915538]
[1767664502657,0.00233923,93839.0,93822.0,0.010658]
[1767664502849,0.00233923,93837.0,93823.0,0.09064]
[1767664504557,0.00233923,93837.0,93824.0,0.010658]
[1767664504749,0.0925576,93844.0,93827.0,0.010658]
[1767664504950,0.00311764,93845.0,93830.0,0.09820059]
[1767664505151,0.09064,93846.0,93828.0,0.01948607]
[1767664505356,0.09064,93846.0,93830.0,0.09820059]
[1767664505555,0.09355102,93846.0,93826.0,0.0915538]
[1767664506259,0.09355102,93846.0,93828.0,0.010658]
[1767664507458,0.09371089,93846.0,93828.0,0.010658]
[1767664507656,0.00207204,93845.0,93828.0,0.010658]
[1767664508454,0.01249056,93842.0,93827.0,0.010658]
[1767664508653,0.00183456,93841.0,93827.0,0.010658]
[1767664509763,0.0925576,93844.0,93824.0,0.01948607]
[1767664510059,0.09423037,93844.0,93824.0,0.01948607]
[1767664511262,0.09423037,93844.0,93829.0,0.010658]
[1767664511759,0.00105163,93843.0,93829.0,0.010658]
[1767664512065,0.00105163,93844.0,93829.0,0.010658]
[1767664512266,0.09337514,93842.0,93826.0,0.010658]
[1767664512652,0.00015987,93846.0,93837.0,0.01948607]
[1767664512856,0.09064,93852.0,93837.0,0.010657]
[1767664513760,0.09064,93852.0,93834.0,0.1022108]
[1767664514062,0.11697089,93850.0,93830.0,0.010657]
[1767664514258,0.0187703,93849.0,93835.0,0.00015987]
[1767664514660,0.0187703,93849.0,93826.0,0.0915538]
[1767664514661,0.0187703,93849.0,93832.0,0.010657]
[1767664515967,0.0294263,93848.0,93829.0,0.010658]
[1767664516461,0.0294263,93848.0,93830.0,0.09820059]
[1767664516968,0.0294263,93848.0,93831.0,0.010657]
[1767664517264,0.09064,93852.0,93841.0,0.11103987]
[1767664517470,0.09064,93852.0,93838.0,0.10885759]
[1767664517660,0.09064,93852.0,93835.0,0.010657]
[1767664518155,0.1094103,93852.0,93835.0,0.010657]
[1767664518559,0.2019679,93852.0,93835.0,0.010657]
[1767664520057,0.2019679,93852.0,93831.0,0.01948607]
[1767664520058,0.09064,93852.0,93837.0,0.010657]
[1767664522171,0.1094103,93852.0,93837.0,0.010657]
[1767664522472,0.1113279,93851.0,93837.0,0.010657]
[1767664522863,0.1113279,93851.0,93830.0,0.09820059]
[1767664523057,0.0187703,93850.0,93830.0,0.09820059]
[1767664523466,0.0187703,93848.0,93833.0,0.010657]
[1767664523668,0.0187703,93848.0,93830.0,0.10885859]
[1767664523863,0.0187703,93846.0,93830.0,0.09820059]
[1767664524062,0.0187703,93844.0,93823.0,0.09064]
[1767664524573,0.0187703,93835.0,93819.0,0.101299]
[1767664524775,0.0187703,93834.0,93819.0,0.101299]
[1767664525157,0.0187703,93834.0,93819.0,0.09064]
[1767664525666,0.0187703,93822.0,93810.0,0.09064]
[1767664525858,0.0187703,93822.0,93810.0,0.01066]
[1767664526064,0.0187703,93822.0,93810.0,0.10886059]
[1767664526263,0.0925576,93823.0,93810.0,0.09820059]
[1767664527966,0.0187703,93826.0,93810.0,0.10886059]
[1767664528871,0.0294283,93826.0,93807.0,0.03014607]
[1767664529068,0.0187703,93823.0,93802.0,0.09064]
[1767664529265,0.0187703,93821.0,93803.0,0.010661]
[1767664529668,0.0187703,93821.0,93805.0,0.01066]
[1767664529868,0.0925576,93822.0,93805.0,0.01066]
[1767664530966,0.09820059,93820.0,93805.0,0.01066]
[1767664531167,0.010659,93819.0,93802.0,0.11012607]
[1767664531370,0.010659,93819.0,93802.0,0.09064]
[1767664532074,0.09820059,93820.0,93802.0,0.09064]
[1767664532574,0.09381964,93818.0,93801.0,0.010661]
[1767664532878,0.11426767,93817.0,93802.0,0.09064]
[1767664533372,0.010658,93824.0,93804.0,0.02015901]
[1767664533577,0.010658,93824.0,93803.0,0.010661]
[1767664533578,0.010658,93824.0,93807.0,0.02015901]
[1767664534172,0.02044803,93825.0,93804.0,0.02015901]
[1767664534367,0.11108803,93830.0,93813.0,0.010659]
[1767664536885,0.09064,93830.0,93815.0,0.010659]
[1767664537780,0.09064,93830.0,93812.0,0.01066]
[1767664538480,0.11108803,93830.0,93812.0,0.01066]
[1767664539678,0.11108803,93830.0,93814.0,0.010659]
[1767664540270,0.11108803,93830.0,93816.0,0.010659]
[1767664540475,0.09381964,93832.0,93816.0,0.010659]
[1767664540675,0.09381964,93832.0,93815.0,0.02015901]
[1767664540676,0.010657,93833.0,93815.0,0.02015901]
[1767664540876,0.02044803,93832.0,93813.0,0.10813773]
[1767664541784,0.02044803,93832.0,93815.0,0.010659]
[1767664542791,0.02044803,93832.0,93817.0,0.010659]
[1767664542980,0.09381964,93833.0,93819.0,0.010659]
[1767664543778,0.11426767,93833.0,93819.0,0.010659]
[1767664545178,0.11426767,93833.0,93816.0,0.010659]
[1767664545778,0.02044803,93832.0,93818.0,0.010659]
[1767664548182,0.00213132,93839.0,93821.0,0.02015901]
[1767664548378,0.02044803,93836.0,93821.0,0.010659]
[1767664548579,0.02044803,93829.0,93814.0,0.09064]
[1767664548778,0.11426767,93829.0,93815.0,0.010659]
[1767664549285,0.11426767,93829.0,93814.0,0.09064]
[1767664549487,0.02044803,93828.0,93812.0,0.01066]
[1767664549687,0.02044803,93828.0,93813.0,0.09064]
[1767664550387,0.02044803,93828.0,93816.0,0.010659]
[1767664550581,0.09381964,93829.0,93816.0,0.010659]
[1767664553182,0.09381964,93835.0,93813.0,0.09064]
[1767664553489,0.02044803,93833.0,93813.0,0.11079901]
[1767664553691,0.02044803,93833.0,93820.0,0.09820059]
[1767664553874,0.11426767,93833.0,93813.0,0.11079901]
[1767664554188,0.11426767,93831.0,93817.0,0.010659]
[1767664554485,0.00213132,93839.0,93813.0,0.09064]
[1767664554486,0.01855283,93828.0,93813.0,0.09064]
[1767664554693,0.01855283,93828.0,93814.0,0.09064]
[1767664554988,0.01855283,93832.0,93814.0,0.09064]
[1767664555185,0.01855283,93830.0,93814.0,0.09064]
[1767664555392,0.01855283,93828.0,93814.0,0.09064]
[1767664555886,0.01855283,93828.0,93813.0,0.010659]
[1767664556093,0.01855283,93828.0,93814.0,0.09064]
[1767664557093,0.01855283,93827.0,93814.0,0.09064]
[1767664557787,0.01855283,93827.0,93810.0,0.01066]
[1767664557993,0.01855283,93827.0,93810.0,0.10886059]
[1767664558290,0.01855283,93827.0,93811.0,0.09064]
[1767664559090,0.09814395,93828.0,93811.0,0.09064]
[1767664559296,0.010658,93827.0,93811.0,0.09064]
[1767664559594,0.11669678,93828.0,93811.0,0.09064]
[1767664559795,0.11669678,93828.0,93812.0,0.01066]
[1767664560487,0.11669678,93828.0,93811.0,0.09064]
[1767664560488,0.02920983,93832.0,93814.0,0.010659]
[1767664560694,0.01855283,93831.0,93814.0,0.010659]
[1767664560892,0.11669678,93831.0,93813.0,0.01066]
[1767664561192,0.01919329,93830.0,93813.0,0.01066]
[1767664561693,0.010658,93829.0,93811.0,0.10886556]
[1767664562595,0.010658,93827.0,93811.0,0.10886556]
[1767664563191,0.010658,93830.0,93814.0,0.010659]
[1767664563389,0.01919329,93829.0,93814.0,0.010659]
[1767664563691,0.010658,93826.0,93811.0,0.1013]
[1767664563895,0.01919329,93825.0,93811.0,0.09064]
[1767664564288,0.01919329,93825.0,93808.0,0.01066]
[1767664564599,0.01919329,93822.0,93809.0,0.09064]
[1767664564992,0.0950031,93823.0,93809.0,0.09064]
[1767664565497,0.02985129,93826.0,93811.0,0.01066]
[1767664565694,0.11419639,93824.0,93811.0,0.01066]
[1767664565883,0.01919329,93821.0,93811.0,0.09064]
[1767664567099,0.01919329,93819.0,93805.0,0.01066]
[1767664567399,0.01919329,93819.0,93806.0,0.09064]
[1767664567701,0.0950031,93820.0,93807.0,0.01066]
[1767664567893,0.0950031,93820.0,93809.0,0.01066]
[1767664568393,0.01919329,93822.0,93809.0,0.01066]
[1767664568796,0.01919329,93822.0,93806.0,0.09064]
[1767664568989,0.010658,93829.0,93814.0,0.01905395]
[1767664569185,0.010658,93829.0,93810.0,0.01905395]
[1767664569497,0.1056611,93830.0,93814.0,0.010659]
[1767664569799,0.0950031,93829.0,93814.0,0.010659]
[1767664569995,0.010658,93828.0,93811.0,0.01066]
[1767664570198,0.010658,93826.0,93808.0,0.01066]
[1767664570593,0.010658,93824.0,93808.0,0.01066]
[1767664571288,0.010658,93825.0,93807.0,0.01066]
[1767664571804,0.010658,93823.0,93807.0,0.01066]
[1767664571999,0.010659,93821.0,93806.0,0.09064]
[1767664572501,0.0950031,93823.0,93807.0,0.01066]
[1767664572803,0.1056611,93823.0,93807.0,0.01066]
[1767664573101,0.0950031,93823.0,93807.0,0.01066]
[1767664573692,0.0950031,93823.0,93809.0,0.01066]
[1767664574998,0.0950031,93828.0,93808.0,0.01905395]
[1767664575198,0.11419639,93828.0,93808.0,0.01905395]
[1767664575398,0.11419639,93828.0,93810.0,0.01066]
[1767664575399,0.12485439,93828.0,93810.0,0.01066]
[1767664575599,0.0950031,93824.0,93810.0,0.01066]
[1767664576798,0.0950031,93824.0,93807.0,0.01905395]
[1767664578004,0.0950031,93824.0,93810.0,0.01066]
[1767664580202,0.0950031,93824.0,93807.0,0.02971395]
[1767664581404,0.1056611,93823.0,93807.0,0.01066]
[1767664582103,0.0950031,93821.0,93807.0,0.01066]
[1767664582504,0.0950031,93821.0,93806.0,0.09064]
[1767664582888,0.1056611,93825.0,93806.0,0.10969395]
[1767664583093,0.0950031,93825.0,93809.0,0.01066]
[1767664583694,0.0950031,93825.0,93806.0,0.10969395]
[1767664583891,0.0950031,93825.0,93808.0,0.01905395]
[1767664584097,0.0950031,93825.0,93811.0,0.01066]
[1767664584297,0.0950031,93825.0,93808.0,0.12035395]
[1767664584492,0.11419639,93825.0,93808.0,0.1013]
[1767664584702,0.0950031,93823.0,93808.0,0.1013]
[1767664585205,0.0950031,93828.0,93809.0,0.01905395]
[1767664585504,0.11419639,93828.0,93809.0,0.01905395]
[1767664585703,0.0950031,93826.0,93808.0,0.09064]
[1767664585903,0.0950031,93826.0,93814.0,0.010659]
[1767664590211,0.0950031,93824.0,93814.0,0.010659]
[1767664592913,0.0950031,93824.0,93816.0,0.010659]
[1767664593104,0.0950031,93824.0,93808.0,0.09064]
[1767664593905,0.0950031,93824.0,93808.0,0.10820093]
[1767664594106,0.0950031,93824.0,93816.0,0.010659]
[1767664594310,0.09311259,93830.0,93818.0,0.010659]
[1767664594711,0.11125678,93830.0,93818.0,0.010659]
[1767664595111,0.45087537,93850.0,93808.0,0.09064]
[1767664595112,0.09311259,93837.0,93820.0,0.01756093]
[1767664595308,0.09311259,93837.0,93825.0,0.010658]
[1767664595510,5.232e-05,93839.0,93828.0,0.010658]
[1767664595703,0.09064,93842.0,93828.0,0.010658]
[1767664595908,0.09311259,93839.0,93824.0,0.010658]
[1767664596103,0.09311259,93835.0,93821.0,0.010659]
[1767664596311,0.09311259,93835.0,93820.0,0.010659]
[1767664596714,0.09311259,93833.0,93819.0,0.09064]
[1767664596917,0.11125678,93833.0,93819.0,0.09064]
[1767664597217,0.09311259,93831.0,93819.0,0.09064]
[1767664603416,0.09311259,93831.0,93819.0,0.101299]
[1767664603920,0.09311259,93831.0,93821.0,0.010659]
[1767664604523,0.09311259,93831.0,93819.0,0.09064]
[1767664605121,0.09311259,93831.0,93821.0,0.010659]
[1767664605423,0.09311259,93831.0,93819.0,0.09064]
[1767664606226,0.09311259,93831.0,93820.0,0.010659]
[1767664608426,0.01814419,93849.0,93832.0,0.010657]
[1767664608620,0.01814419,93848.0,93829.0,0.11885893]
[1767664608821,0.01814419,93848.0,93830.0,0.010658]
[1767664609536,0.01814419,93848.0,93832.0,0.010657]
[1767664610334,0.01814419,93847.0,93832.0,0.010657]
[1767664611135,0.01814419,93847.0,93834.0,0.010657]
[1767664611336,0.01814419,93845.0,93831.0,0.010657]
[1767664611632,0.11125678,93842.0,93829.0,0.09064]
[1767664611834,0.11125678,93841.0,93829.0,0.09064]
[1767664612139,0.01814419,93840.0,93829.0,0.09064]
[1767664612323,0.09311259,93841.0,93829.0,0.09064]
[1767664612528,0.01814419,93843.0,93829.0,0.09064]
[1767664612734,0.01814419,93841.0,93829.0,0.09064]
[1767664613438,0.01814419,93841.0,93830.0,0.010658]
[1767664614337,0.01814419,93841.0,93829.0,0.09064]
[1767664615736,0.01814419,93841.0,93830.0,0.010658]
[1767664617141,0.010656,93849.0,93830.0,0.010658]
[1767664617142,0.11179642,93847.0,93830.0,0.010658]
[1767664617334,0.01822039,93844.0,93830.0,0.010658]
[1767664617540,0.01822039,93843.0,93830.0,0.010658]
[1767664619838,0.01822039,93843.0,93829.0,0.09064]
[1767664621641,0.01822039,93843.0,93823.0,0.01722749]
[1767664621843,0.09950738,93829.0,93804.0,0.01722749]
[1767664622043,0.09950738,93826.0,93816.0,0.09064]
[1767664622243,0.09950738,93824.0,93806.0,0.01066]
[1767664622547,0.09950738,93824.0,93810.0,0.09064]
[1767664623340,0.1027408,93830.0,93811.0,0.01066]
[1767664623546,0.00323342,93829.0,93811.0,0.01066]
[1767664623750,0.00323342,93829.0,93813.0,0.010659]
[1767664623950,0.00323342,93829.0,93810.0,0.11852749]
[1767664624139,0.01389142,93829.0,93810.0,0.11852749]
[1767664624338,0.010658,93827.0,93810.0,0.11852749]
[1767664624538,0.00300647,93823.0,93810.0,0.1888946]
[1767664624939,0.09950738,93824.0,93810.0,0.1888946]
[1767664625340,0.00300647,93826.0,93810.0,0.1888946]
[1767664625741,0.09950738,93829.0,93811.0,0.01066]
[1767664626643,0.10200548,93829.0,93811.0,0.01066]
[1767664628249,0.10200548,93829.0,93814.0,0.010659]
[1767664630152,0.10200548,93829.0,93816.0,0.010659]
[1767664630354,0.09950738,93829.0,93816.0,0.010659]
[1767664630759,0.00148613,93833.0,93816.0,0.010659]
[1767664631356,0.00148613,93833.0,93820.0,0.0982546]
[1767664631546,0.11016438,93834.0,93820.0,0.0982546]
[1767664631744,0.09950738,93834.0,93820.0,0.0982546]
[1767664632056,0.010657,93837.0,93820.0,0.1089136]
[1767664632241,0.09950738,93840.0,93821.0,0.01722749]
[1767664632446,0.11016338,93846.0,93830.0,0.0982546]
[1767664632757,0.11081095,93846.0,93828.0,0.010658]
[1767664632950,0.10015495,93845.0,93828.0,0.010658]
[1767664633149,0.00064757,93844.0,93828.0,0.010658]
[1767664633654,0.0007572,93843.0,93828.0,0.010658]
[1767664635552,0.11016338,93844.0,93828.0,0.010658]
[1767664638158,0.010656,93844.0,93828.0,0.010658]
[1767664638357,0.09950738,93849.0,93831.0,0.01722749]
[1767664638547,0.09064,93852.0,93836.0,0.010657]
[1767664638952,0.101295,93852.0,93836.0,0.010657]
[1767664640554,0.09064,93852.0,93836.0,0.010657]
[1767664641056,0.09064,93852.0,93840.0,0.0982546]
[1767664641360,0.09064,93852.0,93836.0,0.010657]
[1767664641561,0.010655,93853.0,93836.0,0.010657]
[1767664642154,0.11016238,93853.0,93836.0,0.010657]
[1767664642858,0.09950738,93863.0,93849.0,0.010655]
[1767664643061,0.09950738,93863.0,93837.0,0.09836377]
[1767664643062,0.09950738,93863.0,93842.0,0.01722749]
[1767664643560,0.09950738,93863.0,93844.0,0.01722749]
[1767664643748,0.09064,93864.0,93850.0,0.0982546]
[1767664643949,0.09064,93864.0,93848.0,0.010655]
[1767664644170,0.19014738,93864.0,93850.0,0.0982546]
[1767664644369,0.09064,93864.0,93850.0,0.0982546]
[1767664645667,0.09064,93864.0,93847.0,0.010656]
[1767664647259,0.09064,93864.0,93845.0,0.01722749]
[1767664647260,0.010654,93863.0,93845.0,0.01722749]
[1767664647562,0.010654,93863.0,93844.0,0.010656]
[1767664649370,0.010654,93863.0,93845.0,0.010656]
[1767664649560,0.11645307,93865.0,93844.0,0.01722749]
[1767664650973,0.11645307,93865.0,93850.0,0.0982546]
[1767664651174,0.11645307,93865.0,93849.0,0.010655]
[1767664651670,0.11645307,93865.0,93850.0,0.0982546]
[1767664652975,0.0946924,93863.0,93841.0,0.09064]
[1767664653175,0.010654,93862.0,93842.0,0.01751652]
[1767664653373,0.0946924,93862.0,93842.0,0.01751652]
[1767664654374,0.0946924,93862.0,93846.0,0.010656]
[1767664654875,0.010654,93861.0,93843.0,0.010656]
[1767664655078,0.010654,93861.0,93842.0,0.01751652]
[1767664655375,0.0946924,93858.0,93841.0,0.09064]
[1767664655568,0.1053464,93858.0,93841.0,0.09064]
[1767664656076,0.1053464,93858.0,93841.0,0.101296]
[1767664656876,0.0946924,93858.0,93841.0,0.09064]
[1767664657268,0.0946924,93858.0,93842.0,0.09064]
[1767664657880,0.0946924,93858.0,93844.0,0.010656]
[1767664658177,0.010654,93860.0,93844.0,0.010656]
[1767664658382,0.010654,93860.0,93842.0,0.09064]
[1767664658383,0.1053464,93863.0,93846.0,0.010656]
[1767664658679,0.0946924,93860.0,93843.0,0.101296]
[1767664658979,0.0946924,93859.0,93843.0,0.101296]
[1767664660377,0.1053464,93862.0,93845.0,0.010656]
[1767664660683,0.0946924,93859.0,93845.0,0.010656]
[1767664660987,0.0946924,93859.0,93844.0,0.010656]
[1767664662379,0.1053464,93859.0,93844.0,0.010656]
[1767664663384,0.0946924,93859.0,93846.0,0.010656]
[1767664665482,0.0946924,93859.0,93843.0,0.101296]
[1767664665874,0.1053464,93859.0,93843.0,0.101296]
[1767664666079,0.0946924,93855.0,93843.0,0.09064]
[1767664666482,0.1053474,93854.0,93843.0,0.09064]
[1767664667085,0.1053474,93854.0,93840.0,0.0982546]
[1767664667289,0.1053474,93854.0,93841.0,0.09064]
[1767664668189,0.1053474,93854.0,93840.0,0.0982546]
[1767664668394,0.1053474,93854.0,93842.0,0.09064]
[1767664670384,0.010655,93851.0,93842.0,0.09064]
[1767664670589,0.0946924,93854.0,93842.0,0.09064]
[1767664671198,0.0946924,93859.0,93842.0,0.09064]
[1767664671392,0.0946924,93859.0,93841.0,0.01751652]
[1767664671697,0.010654,93858.0,93842.0,0.09064]
[1767664671893,0.0946924,93859.0,93842.0,0.09064]
[1767664672095,0.1053464,93859.0,93842.0,0.09064]
[1767664672397,0.1053464,93859.0,93842.0,0.00015558]
[1767664672790,0.010655,93857.0,93842.0,0.00015558]
[1767664675300,0.0946924,93859.0,93842.0,0.00015558]
[1767664676107,0.010654,93858.0,93842.0,0.00015558]
[1767664676901,0.010655,93854.0,93842.0,0.00015558]